Cogmind - Beta 11.1 @@@ ROGUE MODE // 2022.09.10 @ 23:41:21 Player: Aneyh Result: Destroyed by G-47 Trooper with Particle Gun Performance ------------- Evolutions (1) 500 Regions Visited (2) 400 Robots Destroyed (22) 110 Value Destroyed (447) 447 Prototype IDs (0) 0 Alien Tech Used (0) 0 Bonus (0) 0 TOTAL SCORE: 1457 Bonus ------- None Cogmind --------- Core Integrity 0/400 Matter 300/300 Energy 100/100 System Corruption 6% Temperature Cool (9) Movement Core (200) Ox3 Location -9/Materials Parts ------- > --- POWER (1) -------- (None) > --- PROPULSION (2) --- (None) > --- UTILITY (4) ------ Medium Storage Unit Signal Interpreter > --- WEAPON (2) ------- (None) > --- INVENTORY (10) --- Light Ion Engine Light Ion Engine Improved Ion Engine Aluminum Leg Aluminum Leg Small Storage Unit Small Storage Unit Medium Storage Unit Sensor Array Peak State ------------ > --- POWER ------------ Ion Engine > --- PROPULSION ------- Aluminum Leg Aluminum Leg > --- UTILITY ---------- Medium Storage Unit Signal Interpreter Targeting Computer Targeting Computer > --- WEAPON ----------- Light Assault Rifle Light Assault Rifle > --- INVENTORY -------- Light Ion Engine Light Ion Engine Improved Ion Engine Aluminum Leg Aluminum Leg Small Storage Unit Small Storage Unit Medium Storage Unit Sensor Array Light Assault Rifle [Rating: 10] Favorites ----------- Power Light Ion Engine Engine Light Ion Engine Propulsion Aluminum Leg Leg Aluminum Leg Utility Targeting Computer Storage Small Storage Unit Processor Targeting Computer Weapon Light Assault Rifle Ballistic Gun Light Assault Rifle Build | -11 -10 -9 ------- Run | Scr Mat Mat Slots Evolved 2 | . . 2 Power . | . . . Propulsion . | . . . Utility 2 | . . 2 Weapon . | . . . Parts Attached 20 | 5 7 8 Power 4 | 1 2 1 Engine 4 | 1 2 1 Core . | . . . Reactor . | . . . Propulsion 4 | 2 2 . Treads . | . . . Leg 4 | 2 2 . Wheel . | . . . Hover . | . . . Flight . | . . . Utility 7 | 1 1 5 Device . | . . . Storage 4 | 1 . 3 Processor 3 | . 1 2 Hackware . | . . . Protection . | . . . Artifact . | . . . Weapon 5 | 1 2 2 Energy Gun . | . . . Energy Cannon . | . . . Ballistic Gun 5 | 1 2 2 Ballistic Cannon . | . . . Launcher . | . . . Special Weapon . | . . . Impact Weapon . | . . . Slashing Weapon . | . . . Piercing Weapon . | . . . Special Melee Weapon . | . . . Unidentified Prototypes . | . . . Parts Lost 11 | . 3 8 Power 2 | . 1 1 Propulsion 3 | . 1 2 Utility 2 | . . 2 Weapon 4 | . 1 3 Highest Loss Streak 8 | . 2 8 To Critical Strikes . | . . . Average Slot Usage (%) 91 | . 97 82 Engine 11 | . 13 9 Leg 22 | . 28 14 Storage 12 | . 14 11 Processor 21 | . 12 31 Ballistic Gun 22 | . 27 15 Naked Turns . | . . . Heaviest Build 27 | 10 11 27 Greatest Support 20 | 20 20 20 Greatest Overweight (x) 4 | . . 4 Average Overweight (x) . | . . . Largest Inventory Capacity 15 | 8 8 15 Average Capacity 8 | 7 8 9 Most Carried 10 | 5 7 10 Average Carried 5 | 2 4 7 Final Capacity 10 | 8 8 10 Final Carried 9 | 3 7 9 Class Distribution -------------------- 72% | Mutant 27% | Scavenger-Mutant Dominant Class ---------------- Mutant | -10/Materials Scavenger-Mutant | -9/Materials Resources | -11 -10 -9 ----------- Run | Scr Mat Mat Matter Collected 612 | 243 237 132 Remotely . | . . . Salvage Created 850 | . 438 412 Parts 36 | . 21 15 Haulers Intercepted . | . . . Recyclers Shooed 4 | . 2 2 Parts Field Recycled . | . . . Retrieved Matter . | . . . Parts Self-Destructed . | . . . Prevented . | . . . Kills | -11 -10 -9 ------- Run | Scr Mat Mat Combat Hostiles Destroyed 14 | . 11 3 Guns 14 | . 11 3 Classes Destroyed 6 | . 5 1 Recycler 5 | . 1 4 Operator 1 | . 1 . Watcher 2 | . 1 1 Swarmer 6 | . 6 . Grunt 7 | . 5 2 Sentry 1 | . . 1 Best Kill Streak 4 | . 4 3 Combat Bots Only 3 | . 3 1 Max Kills in Single Turn 2 | . 2 1 Gunslinging 1 | . 1 . Exploded . | . . . Melee . | . . . Uniques/NPCs Destroyed . | . . . Combat | -11 -10 -9 -------- Run | Scr Mat Mat Damage Taken 1500 | . 657 843 Core 578 | . 170 408 Absorbed by Shields . | . . . Core Remaining (%) 66 | 100 32 . Volleys Fired 108 | . 60 48 Largest 2 | . 2 2 Hottest 40 | . 40 40 Shots Fired 199 | . 120 79 Gun 199 | . 120 79 Cannon . | . . . Launcher . | . . . Special . | . . . Kinetic 199 | . 120 79 Thermal . | . . . Explosive . | . . . Electromagnetic . | . . . Robot Hit Streak 22 | . 17 22 Robot Miss Streak 5 | . 5 2 Penetration Max . | . . . Secondary Targets 3 | . 3 . Max Gunslinging Chain 1 | . 1 . Shots Hit Robots 139 | . 71 68 Core Hits 48 | . 28 20 Critical Kills 2 | . . 2 Critical Parts Destroyed . | . . . Critical Strikes 2 | . . 2 Destroy 2 | . . 2 Melee Attacks . | . . . Impact . | . . . Slashing . | . . . Piercing . | . . . Sneak Attacks . | . . . Combat Hostiles . | . . . Follow-up Attacks . | . . . Damage Inflicted 1222 | . 652 570 Guns 1205 | . 652 553 Cannons . | . . . Explosions . | . . . Melee . | . . . Ramming 17 | . . 17 Kinetic 1205 | . 652 553 Thermal . | . . . Explosive . | . . . Electromagnetic . | . . . Impact . | . . . Slashing . | . . . Piercing . | . . . Highest Corruption 6 | . . 6 Average Corruption 4 | . . 4 Corruption Purged . | . . . Corruption Blocked . | . . . Effects 1 | . . 1 Matter Fused 1 | . . 1 Overload Shots . | . . . Overflow Damage . | . . . Projectiles . | . . . Explosions . | . . . Melee . | . . . Knockbacks . | . . . Impact . | . . . Kinetic . | . . . Secondary . | . . . Self-Inflicted Damage 3 | . . 3 Shots . | . . . Rammed 22 | . . 22 Targets Rammed 22 | . . 22 Kicked . | . . . Crushed . | . . . Highest Temperature 27 | . 22 27 Average Temperature 9 | . 10 7 Received Heat Transfer 741 | . 279 462 Siege Activations . | . . . Robots Corrupted . | . . . Combat Hostiles . | . . . Parts Fried . | . . . Impact Corruptions . | . . . Robots Melted . | . . . Combat Hostiles . | . . . Parts Melted . | . . . Heat Transferred . | . . . Parts Sabotaged . | . . . Parts Stolen . | . . . Parts Stripped . | . . . Power Chain Reactions . | . . . Missiles Intercepted . | . . . Alert | -11 -10 -9 ------- Run | Scr Mat Mat Peak Influence 299 | . 299 263 Initial 126 | . . 126 Average 148 | . 122 209 Maximum Alert Level 1 | . 1 1 Low Security (%) 59 | 100 71 37 Level 1 40 | . 28 62 Level 2 . | . . . Level 3 . | . . . Level 4 . | . . . Level 5 . | . . . High Security . | . . . Max Security . | . . . Squads Dispatched 3 | . 2 1 Investigation 1 | . . 1 Extermination . | . . . Reinforcement 2 | . 2 . Assault . | . . . Garrison . | . . . Intercept . | . . . Searches Triggered . | . . . Construction Impeded . | . . . Haulers Reinforced . | . . . Active Scanning Responses . | . . . Cargo Convoy Interrupts . | . . . Stealth | -11 -10 -9 --------- Run | Scr Mat Mat Distress Signals 3 | . 2 1 Communications Jammed . | . . . Distress Signals . | . . . Times Spotted 26 | . 17 9 Peak Tracking Total 4 | . 4 3 Tactical Retreats 1 | . . 1 Traps | -11 -10 -9 ------- Run | Scr Mat Mat Traps Triggered 2 | . 1 1 Indirectly . | . . . Trap Hack Attempts . | . . . Triggered . | . . . Disarmed . | . . . Reprogrammed . | . . . Reused . | . . . Traps Extracted . | . . . Installed . | . . . Triggered . | . . . Machines | -11 -10 -9 ---------- Run | Scr Mat Mat Machines Disabled . | . . . Max in Single Turn . | . . . Machines Sabotaged . | . . . Garrisons Compromised . | . . . Overloaded Fab Kills . | . . . Hacking | -11 -10 -9 --------- Run | Scr Mat Mat Machines Accessed 1 | . 1 . Terminals 1 | . 1 . Fabricators . | . . . Repair Stations . | . . . Recycling Units . | . . . Scanalyzers . | . . . Garrison Access . | . . . Total Hacks 2 | . 2 . Successful 1 | . 1 . Failed 1 | . 1 . Catastrophic . | . . . Database Lockouts . | . . . Manual . | . . . Terminals 2 | . 2 . Fabricators . | . . . Repair Stations . | . . . Recycling Units . | . . . Scanalyzers . | . . . Garrison Access . | . . . Terminal Hacks 1 | . 1 . Record 1 | . 1 . Fabricator Hacks . | . . . Repair Station Hacks . | . . . Recycling Unit Hacks . | . . . Scanalyzer . | . . . Garrison Access Hacks . | . . . Unauthorized Hacks . | . . . Terminals . | . . . Fabricators . | . . . Repair Stations . | . . . Recycling Units . | . . . Scanalyzers . | . . . Garrison Access . | . . . Data Cores Recovered . | . . . Used . | . . . Hacking Detections 1 | . 1 . Full Trace Events 1 | . 1 . Feedback Events . | . . . Feedback Blocked . | . . . Robot Schematics Acquired . | . . . Robots Built . | . . . Authchips . | . . . Time . | . . . Total Robot Build Rating . | . . . Part Schematics Acquired . | . . . Parts Built . | . . . Authchips . | . . . Time . | . . . Total Part Build Rating . | . . . Parts Repaired . | . . . Time . | . . . Parts Recycled . | . . . Recycled Matter . | . . . Retrieved Matter . | . . . Retrieved Components . | . . . Parts Scanalyzed . | . . . Part Schematics Acquired . | . . . Parts Damaged . | . . . Bothacking | -11 -10 -9 ------------ Run | Scr Mat Mat Used RIF Installer . | . . . Robots Hacked . | . . . Non-combat . | . . . Combat . | . . . Robot Hacks Applied . | . . . Relay Couplers Released . | . . . Fabnet Peak Effective % . | . . . Robots Rewired . | . . . Allies Hacked . | . . . Hacks Repelled . | . . . Allies | -11 -10 -9 -------- Run | Scr Mat Mat Total Allies . | . . . Largest Group . | . . . Highest-Rated Group . | . . . Highest-Rated Ally . | . . . Total Orders . | . . . Ally Attacks . | . . . Total Damage . | . . . Kills . | . . . Allies Corrupted . | . . . Allies Melted . | . . . Intel | -11 -10 -9 ------- Run | Scr Mat Mat Robot Analysis Total . | . . . Derelict Logs Recovered . | . . . Drone Launches . | . . . Drone Recoveries . | . . . Exploration | -11 -10 -9 ------------- Run | Scr Mat Mat Turns Passed 760 | 58 396 306 Spaces Moved 320 | 46 176 98 Core 23 | 13 . 10 Treads . | . . . Legs 297 | 33 176 88 Wheels . | . . . Hover . | . . . Flight . | . . . Fastest Speed 50 | 50 120 120 Average Speed 120 | 100 120 131 Slowest Speed 250 | 120 120 250 Overloaded Moves . | . . . Propulsion Burnouts . | . . . Robots Hopped . | . . . Cave-ins Triggered . | . . . Exploration Rate (%) 13 | 3 24 12 Regions Visited 2 Branch Regions . Pre-discovered Areas . | . . . Known Exits Taken . | . . . Unknown Exits Taken 2 | 1 1 . Scrap Searched . | . . . Spaces Dug . | . . . Terrain Destroyed . | . . . Melee . | . . . Projectile . | . . . AOE . | . . . Terrain Rammed . | . . . Walls Destroyed . | . . . Machines Disabled . | . . . Actions | -11 -10 -9 --------- Run | Scr Mat Mat Total 503 | 58 259 186 Wait 9 | . 6 3 Move 318 | 45 175 98 Hop . | . . . Pick Up 24 | 8 10 6 Fast Attach . | . . . Attach 13 | 5 5 3 Detach . | . . . Swap 7 | . 2 5 Drop 2 | . 1 1 Fire 108 | . 60 48 Melee . | . . . Ram 22 | . . 22 Kick . | . . . Crush . | . . . Escape Stasis . | . . . Rewire . | . . . Trap . | . . . Miscellaneous . | . . . Route ------- -11/Scrapyard -10/Materials -9/Materials History --------- Turn | Location | Event 8 | -11/Scrapyard | Discovered new exit (range 15) 59 | -11/Scrapyard | Entered Materials 318 | -10/Materials | Build established: Mutant 353 | -10/Materials | Core integrity fell below 50% 375 | -10/Materials | Discovered new exit (range 16) 455 | -10/Materials | Entered another Materials area 455 | -9/Materials | Evolved 2 slots: Utility x2 719 | -9/Materials | Core integrity fell below 50% 750 | -9/Materials | Core integrity fell below 20% 761 | -9/Materials | Destroyed by G-47 Trooper with Particle Gun Last Messages --------------- Slammed into G-34 Mercenary. Destabilizing: System corrupted (+2). Slammed into G-34 Mercenary. Destabilizing: System corrupted (+2). Slammed into G-34 Mercenary. Targeting Computer destroyed. Slammed into G-34 Mercenary. R-06 Scavenger collects Com. Wheel. K-01 Serf collects debris. System corrupted: Matter fused (-10). K-01 Serf collects debris. Slammed into G-34 Mercenary. Destabilizing: System corrupted (+1). K-01 Serf collects debris. Slammed into G-34 Mercenary. K-01 Serf collects debris. Slammed into G-34 Mercenary. Destabilizing: System corrupted (+1). K-01 Serf collects debris. Targeting Computer destroyed. Map ----- +----------------------------------------------------+ | ?????????????????????????# #???????????????????? | | ?????????????????????????# #???????????????????? | | ?????????????????????????# #???????????????????? | | ?????????????????????????# #???????????????????? | | ?????????????????????????# ###+####????????????? | | ?????????????????????????# [ #????????????? | | ?????????????????????????# +????????????? | | ?????????????????????????# #????????????? | | ?????????????????????????# ! #?????????????? | | ?????????????????????????# """ #?????????????? | | ?????????????????????????# """ #?????????????? | | ?????????????????????????# """ ###???????????? | | ?????????????????????????# """ ""#???????????? | | ?????????????????????????# % Y"#???????????? | | ????????????????#????????# ""#???????????? | | ????????????????# ???????# ###???????????? | | ????????????????# ######## #####?????????? | | ????????######### k%% #?????????? | | ???????? %% % #?????????? | | ??????? ! "T" + ???????? | | ??????? %% #?????????? | | ???????# ag #?????????? | | ????????? ############g ######## #?????????? | | ??????????????????##!!% %%#?? ]]!# #?????????? | | ??????????????????#%%% # ]!!# #?????????? | | ??????????????????#!%% @/ ]! # #???#?????? | | ??????????????????#%% %% # # #?? #?????? | | ??????????????????# % g #?? ## #### #?????? | | ??????????????????##!! #???? ## #?????? | | ???????????????????#### #??????## #?????? | | ??????????????????????# #???????# #?????? | | ??????????????????????# #???????# #?????? | | ??????????????????????# ######### #?????? | | ??????????????????????# #?????? | | ??????????????????????# ########### #+####?????? | | ??????????????????????# #?????????? #??????????? | | ??????????????????????# #???????????#??????????? | | ??????????????????????# #??????????????????????? | | ??????????????????????# #??????????????????????? | | ??????????????????????# #??????????????????????? | | ??????????????????????# #??????????????????????? | | ??????????????????????# #??????????????????????? | | ??????????????????????# #####??????????????????? | | ??????????????????????# #??????????????????? | | ??????????????????????# #??????????????????? | | ??????????????????????# #??????????????????? | | ?????????????????????#####+#####?????????????????? | | ?????????????????????# #?????????????????? | | ?????????????????????# #?????????????????? | | ?????????????????????# #?????????????????? | +----------------------------------------------------+ Best States ------------- Heat Dissipation 28 Energy Generation 10 Energy Capacity 250 Matter Stores 300 Matter Capacity 300 Sight Range 16 Terrain Scan Density 10 Evasion (%) 55 Targeting Accuracy 10 Item Schematics ----------------- None Robot Schematics ------------------ None Fabricated ------------ Nothing Alien Tech Used ----------------- None Achievements -------------- None Challenges ------------ None Game ------ Seed GaussAntigravBooster Manual? 0 Play Time 00:17:15 Cumulative 23.6 hours Start 2022.09.10 @ 23:28:19 End 2022.09.10 @ 23:41:21 Sessions 1 Manual Loads 0 Difficulty Rogue Special Mode None Game No. 30 Rogue 27 Adventurer 0 Explorer 3 Win Type - Total 0 Types 0/0/0/0/0/0/0/0/0 Lore% 11 Gallery% 20 Achievement% 16 Wizard Run 0 Options --------- ASCII 0 Keyboard 0 Movement Mouse Keybinds 0 Fullscreen 1 Font 18/SmallcapsGlow Map View 76x50 Tactical HUD 0 Map Filters NONE Filters NONE Steam 1 RUN: 0019407b-fcf5-4919-af60-53222cf0ffde